bitfinex/quotes_SOLUSD_20250710
["timestamp","ask_amount","ask_price","bid_price","bid_amount"]
[1752156383839,10.95828467,156.75,156.7,0.66]
[1752156384039,26.0,156.76,156.73,10.25828467]
[1752156384235,26.0,156.76,156.73,10.91828467]
[1752156384555,6.37896748,156.77,156.73,10.91828467]
[1752156385048,16.63676316,156.78,156.74,10.91828467]
[1752156385250,16.63676316,156.78,156.75,10.25828467]
[1752156385251,6.37847849,156.78,156.75,10.25828467]
[1752156385548,6.37847849,156.78,156.75,10.91828467]
[1752156385926,6.37847849,156.78,156.75,0.66]
[1752156386740,26.0,156.78,156.75,10.91828467]
[1752156387055,26.0,156.78,156.76,0.66]
[1752156387349,6.37673766,156.82,156.77,10.91828467]
[1752156387563,6.37673766,156.82,156.78,10.25828467]
[1752156388145,32.3774761,156.81,156.78,10.25828467]
[1752156389571,32.3774761,156.81,156.78,10.91828467]
[1752156390069,32.3774761,156.81,156.78,0.66]
[1752156390277,32.3774761,156.81,156.78,10.91828467]
[1752156390562,26.0,156.81,156.79,10.91828467]
[1752156391676,32.37718002,156.81,156.77,0.66]
[1752156391857,32.37718002,156.81,156.79,10.25828467]
[1752156392165,6.37686191,156.82,156.79,10.25828467]
[1752156392364,6.37686191,156.82,156.79,0.66]
[1752156392569,7.0764235,156.83,156.79,10.91828467]
[1752156392743,32.37601561,156.84,156.75,22.32842714]
[1752156392943,32.37601561,156.84,156.81,10.25828467]
[1752156393159,6.37550254,156.86,156.83,10.25828467]
[1752156393352,16.63378721,156.86,156.81,10.25828467]
[1752156393550,6.3759245,156.84,156.8,10.25828467]
[1752156393748,10.95828467,156.85,156.81,10.25828467]
[1752156393749,17.33388067,156.85,156.81,10.25828467]
[1752156393971,17.33388067,156.85,156.81,10.91828467]
[1752156394472,17.33388067,156.85,156.81,0.66]
[1752156394645,17.33388067,156.85,156.81,10.91828467]
[1752156396174,36.25828467,156.82,156.78,0.66]
[1752156396353,10.25828467,156.84,156.8,10.25828467]
[1752156396555,0.84216157,156.83,156.78,10.25828467]
[1752156396872,26.0,156.82,156.77,10.25828467]
[1752156397065,10.95828467,156.81,156.76,0.66]
[1752156397264,10.25828467,156.8,156.76,10.91828467]
[1752156397455,6.37795777,156.79,156.75,10.25828467]
[1752156397654,6.37795777,156.79,156.75,10.91828467]
[1752156397848,6.37795777,156.79,156.76,10.91828467]
[1752156398249,6.37795777,156.79,156.77,10.25828467]
[1752156398665,6.37714431,156.81,156.78,10.91828467]
[1752156398864,6.37714431,156.81,156.78,0.66]
[1752156399106,6.37605909,156.84,156.8,10.25828467]
[1752156399373,0.03,156.85,156.82,10.25828467]
[1752156399553,0.03,156.85,156.81,10.91828467]
[1752156399747,0.03,156.85,156.83,10.25828467]
[1752156400176,0.03,156.85,156.84,10.91828467]
[1752156400378,0.03,156.85,156.84,29.56793353]
[1752156400764,6.37319342,156.91,156.85,18.64964886]
[1752156400961,6.37319342,156.91,156.88,10.25828467]
[1752156401582,10.25828467,156.91,156.86,0.66]
[1752156401881,6.37267397,156.92,156.88,10.25828467]
[1752156402078,16.63095864,156.92,156.88,10.25828467]
[1752156402284,17.33095864,156.92,156.88,10.25828467]
[1752156402486,7.07267397,156.92,156.88,10.25828467]
[1752156402673,17.33095864,156.92,156.88,10.25828467]
[1752156403079,17.33095864,156.92,156.89,10.91828467]
[1752156403080,6.37267397,156.92,156.89,10.91828467]
[1752156403288,6.37237622,156.93,156.9,10.91828467]
[1752156403494,6.37237622,156.93,156.91,0.66]
[1752156403682,6.37113999,156.96,156.92,10.91828467]
[1752156404189,6.37113999,156.96,156.88,6.37424437]
[1752156404190,6.37113999,156.96,156.93,10.91828467]
[1752156404767,6.37113999,156.96,156.88,0.14216157]
[1752156404974,6.37113999,156.96,156.92,10.25828467]
[1752156404975,7.07113999,156.96,156.92,10.25828467]
[1752156405190,6.37113999,156.96,156.94,10.25828467]
[1752156405994,6.37064407,156.97,156.93,10.25828467]
[1752156406291,6.37064407,156.97,156.89,25.0232362]
[1752156406292,6.37034962,156.98,156.94,10.91828467]
[1752156407099,6.37034962,156.98,156.95,0.66]
[1752156407303,6.37034962,156.98,156.95,10.91828467]
[1752156409368,6.36942675,157.0,156.96,10.90828467]
[1752156409593,7.04942675,157.0,156.96,10.25828467]
[1752156409797,7.04942675,157.0,156.97,10.25828467]
[1752156409998,17.30771142,157.0,156.94,0.65]
[1752156410294,17.30771142,157.0,156.96,10.25828467]
[1752156410494,16.62771142,157.0,156.95,10.25828467]
[1752156410696,10.25828467,156.97,156.94,0.65]
[1752156410893,10.25828467,156.98,156.94,10.90828467]
[1752156411098,10.93828467,156.99,156.94,0.65]
[1752156411282,10.93828467,156.99,156.95,10.25828467]
[1752156411489,10.25828467,156.98,156.94,10.90828467]
[1752156411985,6.37064407,156.97,156.94,10.90828467]
[1752156413000,16.62821064,156.99,156.95,10.90828467]
[1752156413303,26.0,157.0,156.97,10.25828467]
[1752156413502,0.06,157.01,156.99,10.25828467]
[1752156413721,0.06,157.01,157.0,0.65]
[1752156414586,0.06,157.01,156.96,6.37095627]
[1752156414773,0.06,157.01,156.99,10.90828467]
[1752156414974,0.06,157.01,157.0,0.65]
[1752156415517,0.06,157.01,157.0,10.90828467]
[1752156416114,0.06,157.01,157.0,29.55793353]
[1752156416807,0.06,157.01,157.0,36.06952185]
[1752156417381,0.06,157.01,157.0,36.21168342]
[1752156417776,0.06,157.1,157.04,44.64964886]
[1752156417999,0.06,157.1,157.04,78.42964886]
[1752156418325,0.06,157.1,157.05,0.65]
[1752156418529,0.06,157.1,157.06,10.90828467]
[1752156418899,10.31828467,157.1,157.06,10.25828467]
[1752156419101,0.06,157.1,157.04,55.70572541]
[1752156419441,0.06,157.1,157.06,10.25828467]
[1752156419604,10.99828467,157.1,157.06,10.25828467]
[1752156419952,10.99828467,157.1,156.94,15.92894935]
[1752156419953,10.25828467,157.07,156.94,15.92894935]
[1752156420230,10.25828467,157.0,156.94,12.70953895]
[1752156420404,0.68,157.03,156.97,10.25828467]
[1752156420729,10.25828467,157.01,156.97,10.25828467]
[1752156420928,10.25828467,157.02,156.97,10.25828467]
[1752156421134,10.25828467,157.02,156.98,0.65]
[1752156421428,26.0,157.05,157.0,10.25828467]
[1752156421726,0.68,157.06,157.02,10.25828467]
[1752156421727,6.36727246,157.06,157.02,10.25828467]
[1752156421920,6.36727246,157.06,157.03,10.25828467]
[1752156422222,36.93828467,157.08,157.03,10.25828467]
[1752156422401,26.0,157.08,157.06,10.25828467]
[1752156422601,0.06,157.1,157.07,10.25828467]
[1752156422797,6.42537237,157.1,157.09,10.25828467]
[1752156423001,26.06,157.1,157.08,10.25828467]
[1752156423220,26.06,157.1,157.07,0.65]
[1752156423424,26.06,157.1,157.08,10.25828467]
[1752156423625,6.42542314,157.1,157.08,10.25828467]
[1752156423822,0.06,157.1,157.09,10.25828467]
[1752156424217,0.06,157.1,157.09,10.90828467]
[1752156424614,0.06,157.1,157.06,19.44181043]
[1752156424816,6.42537843,157.1,157.04,6.1358]
[1752156425006,10.25828467,157.07,157.03,10.25828467]
[1752156425212,0.68,157.06,157.02,10.25828467]
[1752156425623,6.36658814,157.07,157.03,10.25828467]
[1752156426317,6.36658814,157.07,157.03,10.90828467]
[1752156426515,26.0,157.08,157.06,10.25828467]
[1752156427057,0.06,157.1,157.05,10.25828467]
[1752156427058,6.36614137,157.09,157.05,10.25828467]
[1752156427725,6.36614137,157.09,157.05,10.90828467]
[1752156428029,6.36614137,157.09,157.06,10.25828467]
[1752156428222,6.36614137,157.09,157.05,0.65]
[1752156428435,0.68,157.08,157.04,10.25828467]
[1752156429036,22.28058531,157.09,157.04,10.25828467]
[1752156429238,0.68,157.07,157.03,10.25828467]
[1752156429416,0.68,157.06,157.02,10.25828467]
[1752156429734,0.68,157.06,157.03,10.25828467]
[1752156429735,7.047261,157.06,157.03,10.25828467]
[1752156430044,6.367261,157.06,157.04,10.25828467]
[1752156430826,26.0,157.09,157.05,10.90828467]
[1752156431040,32.36586271,157.09,157.05,0.65]
[1752156431334,43.30414738,157.09,157.04,10.25828467]
[1752156431514,0.68,157.08,157.03,0.65]
[1752156431721,32.36586271,157.09,157.06,10.25828467]
[1752156431922,32.36586271,157.09,157.05,10.25828467]
[1752156432117,33.04586271,157.09,157.05,10.25828467]
[1752156432643,32.36586271,157.09,157.05,10.90828467]
[1752156433142,42.62414738,157.09,157.04,10.25828467]
[1752156433347,33.04586271,157.09,157.05,10.25828467]
[1752156434139,33.04586271,157.09,157.04,0.65]
[1752156434337,43.30414738,157.09,157.04,10.90828467]
[1752156434542,0.68,157.08,157.04,10.25828467]
[1752156435130,10.93828467,157.08,157.04,10.25828467]
[1752156435343,0.68,157.08,157.04,10.25828467]
[1752156435543,0.68,157.08,157.05,10.25828467]
[1752156435848,26.0,157.09,157.06,10.25828467]
[1752156436029,0.06,157.1,157.07,10.25828467]
[1752156436223,6.42551678,157.1,157.07,10.25828467]
[1752156436725,7.10551678,157.1,157.07,10.25828467]
[1752156437132,6.42551678,157.1,157.07,10.25828467]
[1752156438025,0.06,157.1,157.09,10.25828467]
[1752156438225,0.06,157.1,157.09,10.90828467]
[1752156438435,0.06,157.1,157.09,29.55793353]
[1752156440349,0.06,157.1,157.09,35.9237111]
[1752156440656,0.06,157.1,157.09,19.29964886]
[1752156440854,0.06,157.1,157.09,10.25828467]
[1752156441937,0.06,157.1,157.09,10.94828467]
[1752156442138,0.06,157.1,157.09,17.31406224]
[1752156442338,0.06,157.1,157.09,10.94828467]
[1752156443036,0.06,157.1,157.07,19.33964886]
[1752156443561,0.76,157.1,157.05,18.79181043]
[1752156443849,0.76,157.1,157.06,10.25828467]
[1752156444181,6.36577757,157.09,157.06,10.25828467]
[1752156444534,0.76,157.1,157.07,10.25828467]
[1752156444535,6.42549646,157.1,157.07,10.25828467]
[1752156444845,7.12549646,157.1,157.06,10.94828467]
[1752156445047,6.42549646,157.1,157.07,10.25828467]
[1752156445252,0.06,157.1,157.08,10.94828467]
[1752156446252,0.06,157.1,157.08,10.25828467]
[1752156446445,0.06,157.1,157.09,10.94828467]
[1752156446742,0.06,157.1,157.09,10.25828467]
[1752156446938,0.06,157.1,157.07,7.05624947]
[1752156446939,0.06,157.1,157.07,6.36624947]
[1752156447138,0.06,157.1,157.09,10.94828467]
[1752156447652,0.06,157.1,157.09,16.03039812]
[1752156448363,0.06,157.1,157.09,17.31406224]
[1752156448565,0.06,157.1,157.09,10.94828467]
[1752156448966,0.06,157.1,157.09,17.31406224]
[1752156449171,0.06,157.1,157.09,35.9637111]
[1752156449748,0.06,157.1,157.09,29.59793353]
[1752156450265,0.06,157.1,157.09,19.33964886]
[1752156450463,0.06,157.1,157.09,25.70542643]
[1752156450957,0.06,157.1,157.09,36.24803424]
[1752156451157,0.06,157.14,157.11,0.14216157]
[1752156451362,0.06,157.14,157.13,28.90793353]
[1752156451559,0.06,157.14,157.13,29.59793353]
[1752156452554,0.06,157.14,157.13,35.96209059]
[1752156453062,0.06,157.14,157.12,43.77828467]
[1752156453664,0.06,157.14,157.13,10.94828467]
[1752156453854,0.06,157.14,157.13,29.59793353]
[1752156454056,0.06,157.14,157.13,28.90793353]
[1752156454464,0.06,157.14,157.13,10.25828467]
[1752156454651,0.06,157.14,157.12,33.52]
[1752156455048,0.76,157.14,157.12,33.52]
[1752156455451,0.06,157.14,157.12,43.77828467]
[1752156455660,0.06,157.14,157.12,33.52]
[1752156455971,0.06,157.14,157.13,10.25828467]
[1752156456278,0.06,157.14,157.12,43.77828467]
[1752156457174,0.06,157.14,157.12,33.52]
[1752156457354,0.06,157.14,157.09,18.64964886]
[1752156457560,10.95828467,157.13,157.09,10.25828467]
[1752156457769,10.95828467,157.13,157.09,43.77828467]
[1752156458081,0.06,157.14,157.12,10.25828467]
[1752156458264,0.06,157.14,157.13,10.25828467]
[1752156459975,0.06,157.14,157.13,36.10425216]
[1752156460566,0.06,157.14,157.13,25.84596749]
[1752156460878,0.06,157.14,157.13,36.10425216]
[1752156461082,0.06,157.14,157.13,62.40793353]
[1752156461259,0.06,157.14,157.13,43.75828467]
[1752156461876,0.06,157.14,157.13,33.5]
[1752156462260,0.06,157.14,157.13,63.09793353]
[1752156462473,0.06,157.14,157.13,62.40793353]
[1752156462667,0.06,157.14,157.13,43.75828467]
[1752156463407,0.76,157.14,157.11,10.25828467]
[1752156463574,0.76,157.14,157.11,43.77828467]
[1752156464778,0.76,157.14,157.12,33.52]
[1752156465075,7.12382402,157.14,157.12,33.52]
[1752156465292,0.06,157.14,157.12,33.52]
[1752156465467,0.06,157.14,157.12,43.77828467]
[1752156466088,0.06,157.14,157.13,10.25828467]
[1752156466698,0.06,157.14,157.13,10.94828467]
[1752156467880,0.06,157.14,157.13,35.96209059]
[1752156468689,0.06,157.14,157.13,28.90793353]
[1752156470278,0.06,157.14,157.13,18.64964886]
[1752156470474,0.06,157.14,157.13,28.90793353]
[1752156471191,0.06,157.14,157.13,10.25828467]
[1752156472584,0.06,157.14,157.13,17.33244173]
[1752156472794,0.06,157.14,157.13,36.12425216]
[1752156473491,0.06,157.14,157.13,16.62244173]
[1752156473691,0.06,157.14,157.13,17.33244173]
[1752156475201,0.06,157.14,157.13,36.12425216]
[1752156476906,0.06,157.14,157.13,17.33244173]
[1752156477981,0.06,157.14,157.13,36.12425216]
[1752156478401,0.06,157.14,157.13,36.26641373]
[1752156478600,0.2,157.17,157.15,0.28432314]
[1752156478804,0.2,157.17,157.16,63.2000951]
[1752156479800,0.06,157.21,157.18,0.14216157]
[1752156479994,0.06,157.21,157.2,10.25828467]
[1752156480193,0.06,157.21,157.2,68.85141825]
[1752156480508,0.06,157.21,157.2,69.56141825]
[1752156480682,0.06,157.21,157.2,69.70357982]
[1752156480891,0.2,157.23,157.22,0.28432314]
[1752156481218,0.2,157.23,157.22,34.29216157]
[1752156481426,0.2,157.23,157.22,34.15]
[1752156481595,0.2,157.23,157.22,43.69828467]
[1752156481919,0.2,157.23,157.22,10.25828467]
[1752156482119,0.9,157.23,157.21,43.69828467]
[1752156482328,0.2,157.23,157.21,50.05904548]
[1752156482617,0.2,157.23,157.22,33.44]
[1752156482822,0.2,157.23,157.22,43.69828467]
[1752156483000,0.2,157.23,157.22,63.2000951]
[1752156483202,0.2,157.23,157.22,63.34225667]
[1752156483408,0.2,157.23,157.22,73.60054134]
[1752156483589,0.06,157.26,157.25,26.0]
[1752156483923,0.06,157.26,157.25,88.61225667]
[1752156484092,0.06,157.26,157.25,89.32225667]
[1752156484295,0.06,157.26,157.25,52.21181043]
[1752156484511,0.06,157.26,157.25,68.82939557]
[1752156484722,0.06,157.26,157.25,69.53939557]
[1752156484892,0.06,157.26,157.25,52.06964886]
[1752156485087,0.06,157.26,157.25,62.32793353]
[1752156485519,0.06,157.26,157.25,68.687234]
[1752156486533,0.06,157.26,157.25,69.53939557]
[1752156486834,0.06,157.26,157.25,69.68155714]
[1752156487713,1e-08,157.26,157.25,95.68155714]
[1752156487921,0.2,157.27,157.26,18.933972]
[1752156488117,0.2,157.28,157.26,29.90225667]
[1752156488324,0.2,157.28,157.27,63.32225667]
[1752156488532,0.2,157.28,157.27,69.68074843]
[1752156489208,0.2,157.29,157.28,44.933972]
[1752156489522,0.2,157.29,157.28,57.55675667]
[1752156490029,0.2,157.29,157.28,47.298472]
[1752156490336,0.2,157.29,157.28,57.55675667]
[1752156490511,0.2,157.29,157.28,63.91484415]
[1752156491926,0.2,157.3,157.28,37.91484415]
[1752156492130,0.2,157.3,157.29,89.32225667]
[1752156492532,0.06,157.34,157.3,18.933972]
[1752156492840,0.06,157.34,157.32,44.933972]
[1752156493010,0.06,157.34,157.32,78.333972]
[1752156493212,0.2,157.36,157.35,44.64964886]
[1752156493407,0.2,157.36,157.35,88.30793353]
[1752156493627,0.2,157.37,157.36,0.28432314]
[1752156493836,0.2,157.37,157.36,11.25260781]
[1752156494035,0.2,157.37,157.36,0.99432314]
[1752156494247,0.2,157.37,157.36,43.96260781]
[1752156494411,0.2,157.37,157.36,68.8049502]
[1752156495012,0.2,157.37,157.36,69.65711177]
[1752156495314,1e-08,157.39,157.38,51.570272]
[1752156495615,0.2,157.42,157.39,18.64964886]
[1752156495811,0.2,157.42,157.41,20.80089248]
[1752156496012,0.2,157.42,157.41,10.25828467]
[1752156496221,0.9,157.42,157.41,43.65828467]
[1752156496430,0.2,157.42,157.41,68.80293164]
[1752156496630,0.2,157.43,157.41,68.80293164]
[1752156496631,0.2,157.43,157.42,18.64964886]
[1752156496834,0.2,157.45,157.42,36.34935667]
[1752156497037,1e-08,157.44,157.43,63.34225667]
[1752156497241,0.7,157.53,157.48,0.14216157]
[1752156497553,0.7,157.53,157.49,33.44]
[1752156497713,0.7,157.53,157.52,10.25828467]
[1752156497909,0.7,157.53,157.51,33.44]
[1752156498339,7.04684934,157.56,157.52,10.25828467]
[1752156498516,0.7,157.54,157.52,10.25828467]
[1752156498913,0.7,157.54,157.53,10.25828467]
[1752156499215,0.68,157.56,157.53,43.67828467]
[1752156499425,0.68,157.56,157.53,33.42]
[1752156499617,0.68,157.55,157.53,43.67828467]
[1752156499817,0.68,157.54,157.53,33.42]
[1752156500022,0.68,157.54,157.52,33.42]
[1752156500241,54.66722497,157.58,157.52,33.42]
[1752156500242,0.68,157.53,157.52,33.42]
[1752156500675,7.0279972,157.53,157.5,33.46]
[1752156500999,0.68,157.52,157.49,33.48]
[1752156501196,0.68,157.52,157.47,10.25828467]
[1752156501520,0.68,157.52,157.46,33.48]
[1752156501666,10.25828467,157.48,157.4,8.55312306]
[1752156501990,26.0,157.46,157.36,8.66253333]
[1752156502166,0.68,157.45,157.39,10.25828467]
[1752156502367,10.25828467,157.43,157.4,33.56]
[1752156502670,0.68,157.42,157.4,33.56]
[1752156502973,0.68,157.41,157.38,33.56]
[1752156503366,0.68,157.41,157.39,10.25828467]
[1752156503987,6.35230826,157.43,157.38,18.64964886]
[1752156504196,0.68,157.43,157.39,43.79828467]
[1752156504495,0.68,157.43,157.4,10.25828467]
[1752156504675,0.68,157.43,157.39,33.54]
[1752156504877,0.68,157.43,157.4,10.25828467]
[1752156505272,16.60999341,157.44,157.39,33.54]
[1752156505273,10.93828467,157.42,157.39,33.54]
[1752156505592,7.03132231,157.45,157.41,10.25828467]
[1752156505800,0.68,157.44,157.41,10.25828467]
[1752156506096,0.68,157.45,157.41,43.77828467]
[1752156506471,0.68,157.45,157.42,10.25828467]
[1752156506788,0.68,157.44,157.42,0.5]
[1752156507094,0.68,157.44,157.42,10.75828467]
[1752156507315,10.93828467,157.43,157.42,0.5]
[1752156507482,0.68,157.43,157.42,0.5]
[1752156508027,10.93828467,157.43,157.42,0.5]
[1752156508478,0.68,157.43,157.42,0.5]
[1752156508665,17.28960828,157.45,157.42,0.5]
[1752156508866,0.68,157.44,157.42,0.5]
[1752156509067,26.0,157.46,157.43,10.25828467]
[1752156509380,17.28882289,157.47,157.43,10.25828467]
[1752156509381,0.68,157.45,157.43,10.25828467]
[1752156509896,17.28842194,157.48,157.44,10.25828467]
[1752156510188,0.68,157.47,157.44,10.25828467]
[1752156510388,0.03,157.45,157.44,10.25828467]
[1752156510768,0.71,157.45,157.43,18.64964886]
[1752156510968,0.71,157.45,157.42,34.02]
[1752156510969,0.68,157.44,157.42,34.02]
[1752156511269,0.68,157.43,157.42,34.02]
[1752156511574,0.68,157.43,157.42,0.5]
[1752156511785,10.28828467,157.45,157.42,0.5]
[1752156511985,0.03,157.45,157.42,10.75828467]
[1752156512191,0.03,157.45,157.42,0.5]
[1752156512383,0.68,157.44,157.42,0.5]
[1752156512580,0.68,157.43,157.42,0.5]
[1752156512779,17.29031414,157.43,157.42,0.5]
[1752156513804,17.29031414,157.43,157.41,0.3]
[1752156513981,10.93828467,157.42,157.41,0.3]
[1752156514389,10.93828467,157.42,157.36,43.75828467]
[1752156514596,10.25828467,157.4,157.36,43.75828467]
[1752156514797,17.29158742,157.4,157.36,43.75828467]
[1752156514989,17.29158742,157.4,157.36,43.77828467]
[1752156515609,0.68,157.39,157.36,43.77828467]
[1752156515904,0.68,157.4,157.37,10.25828467]
[1752156516106,0.68,157.4,157.36,43.77828467]
[1752156516304,10.93828467,157.4,157.36,43.77828467]
[1752156516704,16.6111842,157.41,157.37,10.25828467]
[1752156516902,26.0,157.44,157.39,10.25828467]
[1752156517111,0.68,157.44,157.4,18.64964886]
[1752156517295,10.93828467,157.43,157.4,18.64964886]
[1752156517904,10.93828467,157.43,157.39,43.77828467]
[1752156518213,6.35122261,157.45,157.33,26.68]
[1752156518214,10.25828467,157.4,157.33,26.68]
[1752156518390,10.25828467,157.39,157.36,33.52]
[1752156518588,0.68,157.38,157.33,18.64964886]
[1752156518805,0.68,157.38,157.31,52.16964886]
[1752156519005,6.35445129,157.37,157.32,10.25828467]
[1752156519404,0.68,157.36,157.31,33.56]
[1752156519609,0.68,157.35,157.31,43.81828467]
[1752156519793,0.68,157.36,157.32,18.64964886]
[1752156520202,0.68,157.36,157.32,52.18964886]
[1752156520404,7.03416446,157.38,157.32,62.44793353]
[1752156520605,0.68,157.38,157.34,10.25828467]
[1752156520808,10.93828467,157.38,157.34,10.25828467]
[1752156521117,0.68,157.38,157.35,18.64964886]
[1752156521310,16.61152893,157.4,157.35,28.90793353]
[1752156521514,10.93828467,157.39,157.35,28.90793353]
[1752156522700,17.29201915,157.39,157.35,18.64964886]
[1752156523035,10.25828467,157.41,157.36,19.32964886]
[1752156523195,17.29124708,157.41,157.36,19.32964886]
[1752156523395,10.93828467,157.4,157.36,28.90793353]
[1752156523613,10.93828467,157.39,157.35,33.54]
[1752156523822,10.25828467,157.37,157.35,33.54]
[1752156524193,0.68,157.36,157.33,33.54]
[1752156524394,17.29286385,157.37,157.33,33.54]
[1752156525313,10.93828467,157.37,157.33,43.79828467]
[1752156525509,17.29278318,157.37,157.33,43.79828467]
[1752156525825,17.29278318,157.37,157.31,18.64964886]
[1752156525826,0.68,157.36,157.31,18.64964886]
[1752156526125,10.93828467,157.35,157.31,18.64964886]
[1752156526334,0.68,157.34,157.31,6.35683959]
[1752156526501,10.25828467,157.36,157.32,28.90793353]
[1752156526704,10.93828467,157.36,157.32,28.90793353]
[1752156527104,10.93828467,157.36,157.32,18.64964886]
[1752156527519,10.93828467,157.35,157.32,18.64964886]
[1752156527823,0.68,157.37,157.33,10.25828467]
[1752156527998,10.93828467,157.36,157.32,35.94421927]
[1752156528197,10.93828467,157.36,157.32,18.64964886]
[1752156528630,10.25828467,157.35,157.32,18.64964886]
[1752156528826,0.68,157.35,157.32,18.64964886]
[1752156529418,16.61326874,157.36,157.32,28.90793353]
[1752156529718,10.25828467,157.37,157.32,35.94423446]
[1752156530105,10.95828467,157.38,157.34,28.90793353]
[1752156530315,0.7,157.38,157.34,63.06793353]
[1752156530622,0.7,157.37,157.34,52.12964886]
[1752156530815,10.25828467,157.38,157.34,52.12964886]
[1752156531008,10.95828467,157.39,157.35,10.93828467]
[1752156531622,10.25828467,157.39,157.35,17.29350762]
[1752156531926,16.61167311,157.4,157.35,7.03522295]
[1752156532123,17.31167311,157.4,157.36,10.25828467]
[1752156532326,6.35338844,157.4,157.37,10.25828467]
[1752156532725,6.35338844,157.4,157.36,29.58793353]
[1752156533527,10.95828467,157.39,157.36,18.64964886]
[1752156534024,0.7,157.38,157.34,33.48]
[1752156534234,10.25828467,157.39,157.34,44.41828467]
[1752156534432,16.61167311,157.4,157.36,10.25828467]
[1752156534735,17.31129106,157.41,157.36,10.93828467]
[1752156535631,10.95828467,157.4,157.36,10.25828467]
[1752156536027,10.25828467,157.4,157.36,17.29303098]
[1752156536225,16.61129106,157.41,157.37,10.25828467]
[1752156536427,17.31129106,157.41,157.37,10.25828467]
[1752156537041,0.7,157.41,157.37,10.25828467]
[1752156537225,42.61088747,157.42,157.38,10.25828467]
[1752156537421,32.3526028,157.42,157.38,10.93828467]
[1752156537624,42.61088747,157.42,157.38,10.25828467]
[1752156537827,43.31088747,157.42,157.39,0.5]
[1752156538136,42.61088747,157.42,157.39,0.5]
[1752156538337,10.95828467,157.41,157.39,0.5]
[1752156538724,0.7,157.4,157.39,0.5]
[1752156539440,17.31152482,157.4,157.37,33.42]
[1752156539643,0.7,157.39,157.37,33.42]
[1752156539933,0.7,157.39,157.35,28.90793353]
[1752156540136,0.7,157.38,157.31,9.19995096]
[1752156540323,10.25828467,157.36,157.31,33.7]
[1752156540523,10.25828467,157.34,157.31,0.3]
[1752156540727,10.25828467,157.32,157.31,0.3]
[1752156540926,10.95828467,157.32,157.31,0.3]
[1752156541549,26.0,157.28,157.23,33.44]
[1752156541844,0.7,157.3,157.22,33.44]
[1752156542146,10.25828467,157.28,157.24,10.25828467]
[1752156542347,10.25828467,157.29,157.25,18.64964886]
[1752156542643,10.25828467,157.3,157.26,10.93828467]
[1752156542828,0.7,157.33,157.29,18.64964886]
[1752156543140,10.95828467,157.33,157.29,18.64964886]
[1752156543549,17.31446257,157.33,157.29,18.64964886]
[1752156543914,0.7,157.32,157.29,18.64964886]
[1752156545843,32.35576308,157.34,157.3,10.25828467]
[1752156545844,36.25828467,157.34,157.3,10.25828467]
[1752156546024,10.25828467,157.34,157.3,10.25828467]
[1752156546344,17.31401505,157.34,157.3,10.25828467]
[1752156546534,17.31401505,157.34,157.3,43.69828467]
[1752156546714,0.7,157.33,157.3,43.69828467]
[1752156546919,10.25828467,157.32,157.26,18.64964886]
[1752156547119,0.7,157.31,157.28,33.44]
[1752156547326,0.7,157.31,157.22,9.57995096]
[1752156547327,0.7,157.3,157.22,9.57995096]
[1752156547540,10.25828467,157.29,157.25,18.64964886]
[1752156547744,10.95828467,157.29,157.25,28.90793353]
[1752156547944,10.25828467,157.29,157.25,35.94721979]
[1752156548127,10.25828467,157.29,157.25,63.02793353]
[1752156548326,10.95828467,157.29,157.25,52.08964886]
[1752156548547,10.95828467,157.29,157.25,62.34793353]
[1752156549054,10.95828467,157.29,157.25,29.58793353]
[1752156549245,33.05702955,157.31,157.25,35.94715995]
[1752156549446,10.25828467,157.3,157.25,69.38715995]
[1752156549837,17.31561308,157.3,157.25,69.38715995]
[1752156550160,10.25828467,157.29,157.25,69.38715995]
[1752156550333,10.95828467,157.29,157.25,62.34793353]
[1752156550536,10.95828467,157.28,157.25,18.64964886]
[1752156550737,26.0,157.31,157.25,18.64964886]
[1752156550738,32.3570181,157.31,157.25,52.06964886]